bitfinex/quotes_ETHUSD_20240630
["timestamp","ask_amount","ask_price","bid_price","bid_amount"]
[1719780802691,0.146,3429.5,3429.4,2.65925764]
[1719780803482,7.32,3430.4,3429.8,0.9498]
[1719780803708,2.4489,3431.0,3430.3,0.835]
[1719780803709,9.7689,3431.0,3430.3,0.835]
[1719780804518,9.7689,3431.0,3430.4,0.07687017]
[1719780806074,9.7689,3431.0,3430.3,0.835]
[1719780806271,9.7689,3431.0,3430.5,0.07677796]
[1719780806467,3.80929,3431.0,3430.1,0.835]
[1719780806667,3.80929,3431.0,3430.6,0.0767181]
[1719780806668,2.4489,3431.0,3430.6,0.0767181]
[1719780806882,3.0,3431.0,3430.3,0.835]
[1719780807082,3.0,3431.2,3430.7,0.07667318]
[1719780807282,3.835,3431.3,3430.4,0.05829377]
[1719780807726,3.835,3431.3,3430.5,0.07676303]
[1719780808025,1.34963,3431.2,3430.5,0.07676303]
[1719780808449,1.34963,3431.2,3430.2,0.835]
[1719780808632,0.835,3431.1,3430.6,0.07671893]
[1719780808841,2.3413,3431.0,3430.6,0.07671893]
[1719780809135,2.3413,3431.0,3430.1,0.89329377]
[1719780809301,2.3413,3431.0,3430.2,0.27796418]
[1719780809499,2.3413,3431.0,3430.2,0.35486283]
[1719780810330,2.3413,3431.0,3430.2,0.41316185]
[1719780811228,3.0,3431.3,3430.5,0.835]
[1719780811431,2.95,3431.3,3430.5,0.835]
[1719780811747,0.835,3431.2,3430.5,0.0582934]
[1719780812044,0.835,3431.2,3430.6,0.07665423]
[1719780812242,2.17963,3431.2,3430.6,0.07665423]
[1719780812443,2.17963,3431.2,3430.4,0.9498]
[1719780812620,2.17963,3431.2,3430.7,0.07660931]
[1719780812821,2.17963,3431.2,3430.4,0.9498]
[1719780813023,2.17963,3431.2,3430.8,0.07656438]
[1719780813220,2.17963,3431.2,3430.4,0.9498]
[1719780813551,0.835,3431.2,3430.5,0.07669916]
[1719780814725,2.95,3431.3,3430.2,1.11296418]
[1719780814952,0.835,3431.1,3430.6,0.07665423]
[1719780815245,0.835,3431.1,3430.7,0.07660931]
[1719780815666,0.835,3431.1,3430.2,1.11296418]
[1719780815868,0.835,3431.1,3430.3,0.75627642]
[1719780816082,0.835,3431.1,3430.3,0.83305631]
[1719780818936,2.3766,3431.0,3430.3,0.83305631]
[1719780819139,0.835,3430.6,3430.3,0.07677989]
[1719780819463,0.835,3430.4,3429.7,0.9498]
[1719780819631,2.3766,3430.5,3429.4,0.24705171]
[1719780819830,2.3766,3430.5,3429.5,0.89330766]
[1719780820269,0.35677955,3431.2,3429.7,0.9498]
[1719780820270,0.835,3430.7,3429.7,0.9498]
[1719780820567,2.3766,3430.8,3429.7,0.9498]
[1719780820568,0.835,3430.5,3429.7,0.9498]
[1719780820767,0.835,3430.5,3429.8,0.07680315]
[1719780821764,2.3766,3430.8,3429.8,0.07680315]
[1719780821929,0.23766,3430.7,3429.8,0.07680315]
[1719780822549,2.3766,3430.6,3429.8,0.07680315]
[1719780822881,2.3766,3430.6,3429.4,0.9498]
[1719780823209,2.3766,3430.6,3429.9,0.07678061]
[1719780823338,2.3766,3430.6,3429.4,0.9498]
[1719780823769,2.3766,3430.6,3429.5,0.0769604]
[1719780823934,0.23766,3430.5,3429.5,0.0769604]
[1719780834198,2.3297,3430.2,3429.5,0.0769604]
[1719780834645,2.3297,3430.2,3429.1,0.9498]
[1719780834841,2.3297,3430.2,3429.2,0.07711684]
[1719780835154,5.3297,3430.2,3429.2,0.07711684]
[1719780835480,0.73327,3430.1,3429.2,0.07711684]
[1719780836858,0.73327,3430.1,3429.1,0.9498]
[1719780837059,0.73327,3430.1,3429.3,0.07707188]
[1719780837458,0.73327,3430.1,3429.1,0.9498]
[1719780837872,0.73327,3430.1,3429.2,0.07711684]
[1719780838078,0.806597,3430.0,3429.2,0.07711684]
[1719780838484,2.3702,3429.9,3429.1,0.9498]
[1719780838934,2.3702,3429.9,3429.2,0.07711684]
[1719780839292,2.3702,3429.9,3429.1,0.9498]
[1719780839647,2.3702,3429.8,3428.7,0.29188082]
[1719780839923,2.3702,3429.8,3428.4,0.9498]
[1719780839924,2.6878797,3429.8,3428.4,0.9498]
[1719780840144,2.3702,3429.7,3428.4,0.9498]
[1719780840316,2.3702,3429.6,3428.5,0.13515859]
[1719780840489,3.13928797,3429.6,3428.6,0.05772527]
[1719780840691,3.13928797,3429.6,3428.6,0.07738666]
[1719780841004,3.13928797,3429.6,3428.4,0.9498]
[1719780841323,3.13928797,3429.6,3428.5,0.13515859]
[1719780841628,0.64569677,3429.5,3428.6,0.05772527]
[1719780841792,0.64569677,3429.5,3428.6,0.00772527]
[1719780842018,0.64569677,3429.5,3428.7,0.07734169]
[1719780842411,0.64569677,3429.5,3428.4,0.9498]
[1719780842613,0.30158968,3429.4,3428.4,0.9498]
[1719780842834,0.30158968,3429.4,3428.5,0.07743164]
[1719780843503,2.2552,3429.3,3428.5,0.07743164]
[1719780844032,0.835,3428.9,3428.5,0.07743164]
[1719780844194,0.835,3428.9,3428.4,0.9498]
[1719780844393,2.2552,3429.3,3428.6,0.07738666]
[1719780844634,0.835,3429.0,3428.4,0.9498]
[1719780845141,1.05224865,3429.2,3428.5,0.07750964]
[1719780845288,0.835,3428.8,3428.5,0.07750964]
[1719780845489,0.835,3428.8,3428.1,0.9498]
[1719780846043,0.835,3428.8,3428.2,0.07764459]
[1719780847249,2.2552,3429.3,3428.3,0.05833174]
[1719780847446,0.835,3429.2,3428.4,0.9498]
[1719780847594,0.835,3429.2,3428.5,0.05832798]
[1719780847793,0.835,3429.2,3428.5,0.13583762]
[1719780848247,7.32,3429.4,3428.5,0.13583762]
[1719780848409,8.155,3429.4,3428.6,0.9498]
[1719780848734,8.155,3429.4,3428.7,0.07741969]
[1719780848907,9.26857968,3429.4,3428.7,0.07741969]
[1719780849105,9.26857968,3429.4,3428.6,0.9498]
[1719780849306,0.835,3429.2,3428.6,0.9498]
[1719780849529,0.835,3429.2,3428.7,0.07755244]
[1719780849530,2.3351,3429.1,3428.7,0.07755244]
[1719780849708,0.835,3429.0,3428.3,0.9498]
[1719780849907,0.835,3429.0,3428.3,1.16251299]
[1719780850126,0.835,3429.0,3428.4,0.07768737]
[1719780851719,0.835,3429.0,3428.3,0.9498]
[1719780851924,8.43357968,3429.4,3428.5,0.07764239]
[1719780852133,8.43357968,3429.4,3428.6,0.9498]
[1719780852343,8.43357968,3429.4,3428.6,0.07759741]
[1719780852344,7.32,3429.4,3428.6,0.07759741]
[1719780852544,7.32,3429.4,3428.9,0.835]
[1719780852723,7.32,3429.4,3429.0,0.05831987]
[1719780852926,7.32,3429.4,3429.0,0.13573739]
[1719780854059,7.32,3429.9,3429.0,0.30537361]
[1719780854271,2.2758,3430.2,3429.1,0.9498]
[1719780854426,2.2758,3430.2,3429.2,0.05831596]
[1719780854615,4.48238,3430.2,3429.2,0.05831596]
[1719780854817,4.48238,3430.2,3429.3,0.07728263]
[1719780855041,4.48238,3430.2,3429.2,0.05831596]
[1719780855247,4.48238,3430.2,3429.3,0.07728263]
[1719780855448,3.0,3430.1,3429.3,0.07728263]
[1719780855650,5.727238,3430.1,3429.2,0.05831596]
[1719780855958,5.727238,3430.1,3429.3,0.07728263]
[1719780856417,5.727238,3430.1,3429.2,0.05831596]
[1719780856936,5.727238,3430.1,3429.3,0.07728263]
[1719780857144,5.727238,3430.1,3429.2,0.05831596]
[1719780857349,5.727238,3430.1,3429.4,0.07723768]
[1719780857662,1.5323038,3430.0,3429.2,0.05831596]
[1719780858026,5.727238,3430.1,3429.3,0.07728263]
[1719780858432,5.727238,3430.1,3429.2,0.05831596]
[1719780858630,3.0,3430.1,3429.2,0.05831596]
[1719780858827,2.2758,3430.2,3429.3,1.02708263]
[1719780858828,3.0,3430.2,3429.3,1.02708263]
[1719780859049,3.0,3430.2,3429.4,0.05831224]
[1719780859935,3.0,3430.2,3429.5,0.07715039]
[1719780872061,2.4126,3430.6,3429.6,1.00811234]
[1719780872280,9.7326,3430.8,3429.8,0.9498]
[1719780872500,9.7326,3430.8,3429.9,0.05830466]
[1719780872802,9.7326,3430.8,3429.9,0.13520059]
[1719780873003,0.97326,3430.7,3429.9,0.13520059]
[1719780873519,3.97326,3430.7,3429.9,0.13520059]
[1719780873808,4.80726,3430.7,3429.9,0.13520059]
[1719780875588,4.80726,3430.7,3430.0,1.4998]
[1719780875589,3.0,3430.7,3430.0,1.4998]
[1719780875772,3.0,3430.7,3430.0,2.3338]
[1719780875973,3.0,3430.7,3430.1,0.07680605]
[1719780876404,3.0,3430.7,3430.1,0.13510294]
[1719780876612,3.834,3430.7,3430.1,0.13510294]
[1719780881581,3.0,3430.7,3430.1,0.13510294]
[1719780882016,7.32,3432.0,3430.5,0.9498]
[1719780882251,2.4605,3432.3,3430.7,2.91479]
[1719780882535,0.834,3432.0,3431.0,0.834]
[1719780882832,0.834,3431.8,3430.8,3.05401677]
[1719780882981,0.834,3431.8,3431.1,0.07622157]
[1719780883189,0.834,3431.8,3430.8,2.97760821]
[1719780883387,0.834,3431.8,3431.2,0.07617666]
[1719780883590,2.4605,3432.3,3430.9,0.58923982]
[1719780883791,4.4615,3432.3,3431.3,0.07613175]
[1719780884020,4.4615,3432.3,3431.0,0.05828355]
[1719780884227,4.4615,3432.3,3431.4,0.07606031]
[1719780884402,3.44615,3432.2,3431.0,0.05828355]
[1719780884958,3.0,3432.2,3431.1,0.07619503]
[1719780887435,2.001,3431.9,3431.1,0.07619503]
[1719780887806,2.001,3431.9,3430.9,0.58923982]
[1719780887999,2.001,3431.9,3431.2,0.07614681]
[1719780888196,2.001,3431.9,3430.9,0.58923982]
[1719780888405,2.001,3431.9,3431.3,0.0761019]
[1719780888631,2.001,3431.9,3431.0,0.50038898]
[1719780888839,2.001,3431.9,3431.4,0.07605699]
[1719780889037,2.001,3431.9,3430.8,1.4998]
[1719780889245,2.001,3431.9,3431.5,0.07601209]
[1719780889432,2.4605,3431.8,3430.8,0.9498]
[1719780889647,2.4605,3431.8,3431.6,0.07597382]
[1719780889939,2.90665,3431.8,3430.8,0.9498]
[1719780890097,2.4605,3431.8,3431.7,0.07593307]
[1719780890438,2.4605,3431.8,3430.8,0.9498]
[1719780890834,2.4605,3431.8,3430.9,0.07629233]
[1719780895354,2.001,3431.7,3430.9,0.07629233]
[1719780895512,2.4317,3431.6,3430.5,0.9498]
[1719780895838,2.6318,3431.6,3431.0,0.07617774]
[1719780896000,2.6318,3431.6,3430.5,0.9498]
[1719780896398,2.6318,3431.6,3430.6,0.07635742]
[1719780896596,2.4483,3431.4,3430.2,0.9498]
[1719780896839,2.001,3431.3,3430.7,0.07631249]
[1719780897044,2.001,3431.3,3430.2,0.9498]
[1719780897398,2.001,3431.3,3430.3,0.07649221]
[1719780898098,2.4483,3431.4,3430.3,0.07649221]
[1719780898342,2.759468,3431.4,3430.3,0.07649221]
[1719780898523,2.4483,3431.1,3430.3,0.07649221]
[1719780898753,2.4483,3431.1,3430.2,0.9498]
[1719780898951,2.4483,3431.1,3430.4,0.07644727]
[1719780899125,2.4483,3431.1,3430.2,0.9498]
[1719780899332,2.9243468,3431.1,3430.5,0.07640234]
[1719780899527,2.9243468,3431.1,3429.8,0.9498]
[1719780899832,2.9243468,3431.1,3430.6,0.07635742]
[1719780900034,2.9243468,3431.1,3429.9,0.55]
[1719780900345,2.9243468,3431.1,3430.0,0.07662702]
[1719780903736,2.9243468,3431.1,3429.9,0.74765626]
[1719780903940,0.834,3430.5,3429.9,0.74765626]
[1719780904139,0.834,3430.5,3430.0,0.07662702]
[1719780904339,0.834,3430.5,3429.9,0.74765626]
[1719780904660,0.834,3430.5,3430.1,0.07658208]
[1719780904859,0.834,3430.5,3430.0,0.24637265]
[1719780905051,0.834,3430.5,3430.0,0.16974563]
[1719780905240,0.834,3430.5,3430.1,0.07664261]
[1719780905639,0.834,3430.5,3430.0,0.16974563]
[1719780905840,0.834,3430.5,3429.9,0.55]
[1719780905841,0.834,3430.5,3430.1,0.16695456]
[1719780906040,0.834,3430.5,3429.9,0.55]
[1719780906429,0.834,3430.5,3430.0,0.0741303]
[1719780906823,0.834,3430.5,3429.9,0.55]
[1719780907026,0.834,3430.5,3430.1,0.07408536]
[1719780907233,0.834,3430.5,3430.0,0.0741303]
[1719780907466,2.4179,3430.6,3430.0,0.0741303]
[1719780907623,7.32,3431.1,3430.1,0.834]
[1719780907821,8.154,3431.1,3430.2,0.55]
[1719780908066,0.834,3430.9,3430.1,0.07408536]
[1719780908267,0.834,3430.7,3430.3,0.07399549]
[1719780908428,0.834,3430.7,3430.0,0.15739303]
[1719780908629,0.834,3430.7,3430.4,0.07395055]
[1719780908873,0.834,3430.7,3430.0,0.15739303]
[1719780909371,0.834,3430.7,3430.1,0.07408536]
[1719780909731,0.834,3430.7,3430.0,0.05830279]
[1719780909934,0.834,3430.7,3430.2,0.07404042]
[1719780910131,0.834,3430.5,3429.5,0.9498]
[1719780910325,0.834,3430.5,3430.3,0.07399549]
[1719780910644,1.15919,3430.5,3429.6,0.55]
[1719780910970,0.834,3430.5,3429.7,0.07426513]
[1719780911472,0.834,3430.5,3429.8,0.05830551]
[1719780911969,0.834,3430.5,3429.9,0.07417524]
[1719780912632,0.834,3430.5,3429.8,0.05830551]
[1719780912833,0.834,3430.5,3430.0,0.0741303]
[1719780913243,0.834,3430.5,3429.8,0.20430551]
[1719780913444,0.834,3430.5,3430.1,0.07408536]
[1719780913709,0.806,3430.5,3429.8,0.20430551]
[1719780913990,0.806,3430.5,3430.2,0.07404042]
[1719780914197,0.806,3430.5,3429.8,0.37471606]
[1719780914576,0.806,3430.5,3429.9,0.07417524]
[1719780915568,0.806,3430.5,3429.8,0.31641055]
[1719780915965,0.806,3430.5,3429.9,0.07417361]
[1719780918180,0.834,3430.3,3429.9,0.07417361]
[1719780918555,0.834,3430.3,3429.8,0.146]
[1719780918797,0.834,3430.3,3430.0,0.07419086]
[1719780918982,0.834,3430.3,3429.8,0.146]
[1719780919363,0.834,3430.3,3429.9,0.0742358]
[1719780919756,0.834,3430.3,3429.8,0.146]
[1719780920271,0.834,3430.3,3429.9,0.0742358]
[1719780920671,0.834,3430.3,3429.8,0.146]
[1719780920991,0.834,3430.3,3429.9,0.0742358]
[1719780921292,0.834,3430.3,3429.8,0.146]
[1719780921594,0.834,3430.3,3429.9,0.0742358]
[1719780921954,0.834,3430.3,3429.8,0.146]
[1719780922407,0.834,3430.3,3429.9,0.0742358]
[1719780922752,0.834,3430.3,3429.8,0.146]
[1719780923155,0.834,3430.3,3429.9,0.0742358]
[1719780923587,0.834,3430.3,3429.8,0.146]
[1719780923993,0.834,3430.3,3429.9,0.0742358]
[1719780924498,0.834,3430.3,3429.8,0.146]
[1719780924871,0.834,3430.3,3429.9,0.0742358]
[1719780925259,0.834,3430.3,3429.8,0.146]
[1719780925958,0.834,3430.3,3429.9,0.0742358]
[1719780926505,3.3237,3430.4,3429.8,0.146]
[1719780926873,3.3237,3430.4,3429.9,0.07425487]
[1719780927071,7.32,3430.8,3430.0,0.55]
[1719780927297,7.32,3430.8,3430.2,0.834]
[1719780927503,7.32,3430.8,3430.1,0.23030266]
[1719780927698,7.32,3430.8,3430.3,0.07409088]
[1719780927903,7.32,3430.8,3430.2,0.07413581]
[1719780928215,3.3237,3431.0,3430.3,0.13238841]
[1719780928412,3.3237,3431.0,3430.3,0.05829753]
[1719780928716,3.3237,3431.0,3430.4,0.07404594]
[1719780932231,7.32,3431.2,3430.5,0.05829755]
[1719780932594,7.32,3431.2,3430.6,0.07391959]
[1719780932930,8.154,3431.2,3430.6,0.07391959]
[1719780933099,8.154,3431.2,3430.2,1.7838]
[1719780933422,8.154,3431.2,3430.3,1.16617893]
[1719780933727,0.834,3431.0,3430.3,1.16617893]
[1719780936509,0.834,3431.0,3430.3,0.61617893]
[1719780936703,0.834,3430.8,3430.3,0.07405438]
[1719780937105,0.834,3430.8,3430.1,0.17200549]
[1719780937630,0.834,3430.8,3430.2,0.07408853]
[1719780938091,2.3842,3430.7,3430.2,0.07408853]
[1719780938293,2.3842,3430.7,3430.1,0.17200549]
[1719780938495,2.3842,3430.7,3430.2,0.07408853]
[1719780938800,2.3842,3430.7,3430.1,0.17200549]
[1719780939025,2.3842,3430.7,3430.3,0.0740436]
[1719780939237,2.3842,3430.7,3430.1,0.17200549]
[1719780939437,2.3842,3430.7,3430.4,0.07399867]
[1719780939608,2.3842,3430.7,3430.1,0.17200549]
[1719780939801,2.3842,3430.7,3430.5,0.07395374]
[1719780940005,2.3842,3430.7,3430.1,0.17200549]
[1719780940214,2.3842,3430.7,3430.6,0.07387398]
[1719780940396,2.3842,3430.7,3430.1,0.17200549]
[1719780940732,2.3842,3430.7,3430.6,0.07387398]
[1719780940895,0.834,3430.6,3430.1,0.17200549]
[1719780941231,0.834,3430.6,3430.2,0.0740537]
[1719780941435,0.834,3430.6,3430.1,0.17200549]
[1719780941632,0.834,3430.6,3430.3,0.07400877]
[1719780941834,0.834,3430.6,3430.1,0.17200549]
[1719780942131,0.834,3430.6,3430.4,0.07396383]
[1719780942343,0.834,3430.6,3430.1,0.17200549]
[1719780942529,0.834,3430.6,3430.5,0.0739189]
[1719780942700,0.834,3430.6,3430.1,0.21018055]
[1719780943043,0.834,3430.6,3430.2,0.0740537]
[1719780943223,0.834,3430.6,3430.1,0.21018055]
[1719780943533,0.834,3430.6,3430.3,0.07400877]
[1719780943695,0.834,3430.6,3430.2,0.0740537]
[1719780943900,0.834,3430.6,3430.4,0.07396383]
[1719780944096,0.834,3430.6,3430.1,0.21018055]
[1719780944497,0.834,3430.6,3430.2,0.0740537]
[1719780944953,0.834,3430.6,3430.1,0.21018055]
[1719780945110,0.834,3430.6,3430.3,0.07400877]
[1719780945433,0.834,3430.6,3430.1,0.21018055]
[1719780945731,0.834,3430.6,3430.4,0.07396383]
[1719780945932,0.834,3430.6,3429.9,0.9498]
[1719780946137,0.834,3430.6,3430.0,0.19298]
[1719780946335,0.834,3430.6,3430.0,0.26712358]
[1719780950024,2.3842,3430.7,3430.0,0.26712358]
[1719780950025,0.834,3430.3,3430.0,0.26712358]
[1719780950337,0.834,3430.3,3430.0,0.07414358]
[1719780950535,0.834,3430.5,3430.0,0.07414358]
[1719780950738,0.834,3430.5,3429.8,0.146]
[1719780950905,0.834,3430.5,3430.1,0.07410444]
[1719780951100,0.834,3430.5,3429.8,0.146]
[1719780951539,0.834,3430.5,3429.9,0.07419432]
[1719780952353,0.834,3430.4,3429.9,0.07419432]
[1719780952553,2.4218,3431.2,3430.1,0.9498]
[1719780952752,0.834,3431.0,3430.1,0.9498]
[1719780952954,0.834,3431.0,3430.2,0.07408106]
[1719780954174,2.4218,3431.2,3430.3,0.05829635]
[1719780954377,3.2558,3431.2,3430.3,0.05829635]
[1719780954568,3.2558,3431.2,3430.3,0.13233248]
[1719780954739,0.834,3431.0,3430.4,0.19161325]
[1719780954945,2.4218,3431.2,3430.3,0.13233248]
[1719780954946,0.834,3430.8,3430.5,0.05829339]
[1719780955439,2.4218,3431.2,3430.6,0.07390134]
[1719780955440,0.834,3431.0,3430.6,0.07390134]
[1719780956038,0.834,3431.0,3430.2,0.05829341]
[1719780956255,0.834,3431.0,3430.7,0.07385642]
[1719780956484,0.834,3431.0,3430.3,0.55]
[1719780956694,0.834,3431.0,3430.4,0.15580934]
[1719780956982,0.834,3431.0,3430.4,0.22980054]
[1719780957278,0.834,3430.8,3430.4,0.22980054]
[1719780958671,0.834,3430.8,3430.4,0.0739912]
[1719780958891,0.834,3430.8,3430.2,0.05829709]
[1719780959060,0.834,3430.8,3430.5,0.07391973]
[1719780959260,0.834,3430.8,3430.2,0.05829709]
[1719780959805,0.834,3430.8,3430.3,0.07400959]
[1719780960102,0.834,3430.8,3430.3,0.13230666]
[1719780960400,2.4218,3430.7,3430.3,0.13230666]
[1719780960601,2.4218,3430.7,3430.3,0.07400959]
[1719780960899,2.4218,3430.7,3429.9,0.05829713]
[1719780961068,0.834,3430.6,3430.4,0.07396466]
[1719780961269,0.834,3430.6,3430.1,0.05830085]
[1719780961470,0.834,3430.6,3430.5,0.0739048]
[1719780961669,0.834,3430.6,3430.1,0.05830085]
[1719780961872,0.834,3430.6,3430.5,0.0739048]
[1719780962074,0.834,3430.6,3430.0,0.19880971]
[1719780962294,0.834,3430.6,3430.5,0.0739048]
[1719780962515,0.834,3430.6,3430.0,0.19880971]
[1719780962668,0.834,3430.6,3430.5,0.0739048]
[1719780962864,0.834,3430.6,3429.8,1.0958]
[1719780963072,0.834,3430.6,3429.9,0.19298]
[1719780963302,0.834,3430.6,3429.9,0.26715441]
[1719780966420,0.834,3430.2,3429.9,0.26715441]
[1719780966630,3.2558,3430.2,3429.9,0.07417441]
[1719780966987,0.834,3430.0,3429.9,0.07417441]
[1719780967387,0.834,3430.0,3429.8,0.146]
[1719780967721,0.834,3430.0,3429.9,0.07418602]
[1719780968095,0.834,3430.0,3429.8,0.146]
[1719780968499,0.834,3430.0,3429.9,0.07418602]
[1719780968701,3.2558,3430.2,3429.9,0.07418602]
[1719780969011,3.2558,3430.2,3429.8,0.146]
[1719780969210,3.2558,3430.2,3430.0,0.07414108]
[1719780969396,3.2558,3430.2,3429.8,0.146]
[1719780969604,3.2558,3430.2,3430.1,0.07409614]
[1719780969793,3.2558,3430.2,3429.4,0.9498]
[1719780969989,3.2558,3430.2,3430.1,0.07409614]
[1719780970319,3.2558,3430.2,3429.5,1.02662105]
[1719780970486,3.2558,3430.2,3430.1,0.0731628]
[1719780970689,3.2558,3430.2,3429.5,1.02662105]
[1719780970888,3.2558,3430.2,3430.1,0.0731628]
[1719780971611,3.2558,3430.2,3429.5,1.02662105]
[1719780971814,3.2558,3430.2,3430.1,0.0731628]
[1719780972023,3.2558,3430.2,3429.5,1.02662105]
[1719780972222,3.2558,3430.2,3430.1,0.0731628]
[1719780972388,3.2558,3430.2,3429.5,1.02662105]
[1719780972724,3.2558,3430.2,3429.6,0.07341906]
[1719780973315,3.2558,3430.2,3429.6,0.36863619]
[1719780987373,3.2558,3430.2,3429.6,0.07341906]
[1719780987663,3.2558,3430.2,3429.1,2.39645515]
[1719780987664,3.2558,3430.2,3429.2,1.52281359]
[1719780987831,3.2558,3430.2,3429.3,1.56523926]
[1719780988031,3.2558,3430.2,3429.3,0.55]
[1719780988332,3.2558,3430.2,3429.4,0.07352307]
[1719780988522,3.2558,3430.2,3429.4,0.31425538]
[1719780988933,0.834,3429.8,3429.4,0.07352307]
[1719780989133,2.2885,3429.5,3429.4,0.07352307]
[1719780989431,2.2885,3429.5,3428.6,0.29575278]
[1719780989630,0.834,3429.3,3428.7,0.26922194]
[1719780990334,0.834,3429.3,3428.5,0.9498]
[1719780990566,2.2885,3429.2,3428.3,0.61266883]
[1719780990773,2.2885,3429.2,3428.4,2.53854215]
[1719780990939,2.2885,3429.2,3428.5,1.01541686]
[1719780991146,2.2885,3429.2,3428.3,0.29563631]
[1719780991360,2.2885,3429.2,3428.4,0.56091551]
[1719780991964,2.2885,3429.2,3428.5,0.55]
[1719780993454,2.2885,3429.2,3428.4,0.56091551]
[1719780993640,0.834,3428.9,3428.2,1.24249538]
[1719780995110,0.834,3428.9,3428.3,0.55]
[1719780995438,2.2885,3429.2,3428.3,0.55]
[1719780995784,2.2885,3429.2,3428.4,0.834]
[1719780995964,2.2885,3429.2,3428.5,0.81264954]
[1719780996541,2.2885,3429.2,3428.6,0.07402219]
[1719780996854,2.2885,3429.2,3428.7,0.05832509]
[1719780997055,2.2885,3429.2,3428.7,0.1323023]
[1719780997252,2.2885,3429.2,3428.8,0.05832323]
[1719780997491,2.2885,3429.2,3428.8,0.13225547]
[1719780998987,2.2885,3429.2,3428.8,0.07393224]
[1719780999385,2.2885,3429.2,3428.6,0.05832324]
[1719780999684,2.2885,3429.2,3428.6,0.52050752]
[1719780999882,2.2885,3429.2,3428.7,0.07397721]
[1719781000058,2.2885,3429.2,3428.8,0.05832326]
[1719781000741,2.2885,3429.2,3428.9,0.07388727]
[1719781002883,0.834,3429.1,3428.9,0.07388727]
[1719781003670,0.834,3429.1,3428.7,0.05832362]
[1719781003872,0.834,3429.1,3429.0,0.0738423]
[1719781004071,0.834,3429.1,3428.7,0.05832362]
[1719781004273,0.834,3429.1,3429.0,0.0738423]
[1719781004580,0.834,3429.1,3428.7,0.05832362]
[1719781004788,0.834,3429.1,3429.0,0.0738423]
[1719781004980,0.834,3429.1,3428.7,0.05832362]
[1719781005187,0.834,3429.1,3429.0,0.0738423]
[1719781005386,0.834,3429.1,3428.7,0.05832362]
[1719781005686,0.834,3428.8,3428.2,1.24249538]
[1719781005912,0.834,3428.8,3428.3,0.55]
[1719781006191,3.1478,3428.8,3428.3,0.55]
[1719781009482,3.1478,3428.8,3427.8,3.9498]
[1719781009695,3.1478,3428.8,3427.7,1.52335204]
[1719781009696,0.834,3428.6,3427.9,0.55]
[1719781009869,2.3138,3428.5,3427.8,0.55]
[1719781010224,2.3138,3428.5,3427.6,0.834]
[1719781011508,2.3138,3428.5,3427.7,0.07442129]
[1719781012111,2.3138,3428.5,3427.8,0.55]
[1719781012392,2.3138,3428.5,3427.8,0.62437629]
[1719781013170,0.834,3428.0,3427.8,0.07437629]
[1719781013390,3.1667,3428.0,3427.8,0.07437629]
[1719781013599,3.1667,3428.0,3427.1,0.9498]
[1719781013976,3.1667,3428.0,3427.2,0.07464633]
[1719781014312,3.1667,3428.0,3427.2,0.26049096]
[1719781015096,3.1667,3428.0,3427.3,0.55]
[1719781015293,3.1667,3428.0,3427.3,0.62460132]
[1719781016971,2.3327,3428.0,3427.3,0.62460132]
[1719781021991,0.834,3427.9,3427.3,0.62460132]
[1719781022192,2.453,3427.8,3427.3,0.62460132]
[1719781024150,2.453,3427.8,3427.3,0.07460132]
[1719781024657,2.453,3427.8,3427.4,0.07233365]
[1719781024935,2.453,3427.8,3427.0,0.834]
[1719781025135,2.453,3427.8,3427.5,0.07228864]
[1719781025334,2.453,3427.8,3427.1,0.55]
[1719781025533,2.453,3427.8,3427.6,0.07224364]
[1719781025705,2.453,3427.8,3427.1,0.89235125]
[1719781025893,2.453,3427.8,3427.7,0.07219863]
[1719781026093,2.453,3427.8,3427.1,0.834]
[1719781026592,2.453,3427.8,3427.2,0.07242367]
[1719781028214,2.7817,3427.8,3427.0,1.384]
[1719781028417,2.453,3427.8,3427.1,0.07246869]
[1719781034346,0.834,3427.7,3427.1,0.07246869]
[1719781034546,2.447,3427.6,3427.1,0.07246869]
[1719781035876,2.447,3427.6,3426.8,0.834]
[1719781036076,2.447,3427.6,3427.2,0.07243031]
[1719781036383,2.447,3427.6,3426.8,0.834]
[1719781036384,2.7751,3427.6,3426.8,0.834]
[1719781036841,2.7751,3427.6,3426.9,0.07256536]
[1719781037276,2.447,3427.6,3426.9,0.07256536]
[1719781038342,2.447,3427.6,3426.9,0.90656536]
[1719781039559,2.447,3427.6,3427.1,0.834]
[1719781039967,2.447,3427.6,3427.2,0.07243031]
[1719781041505,2.447,3427.6,3427.0,0.60835718]
[1719781041707,2.447,3427.6,3427.3,0.07238529]
[1719781042010,2.447,3427.6,3427.0,0.55]
[1719781042183,2.447,3427.6,3427.4,0.07234028]
[1719781042378,2.447,3427.6,3426.8,1.384]
[1719781042612,2.447,3427.6,3427.5,0.07229528]
[1719781042852,2.447,3427.6,3426.8,1.384]
[1719781042994,3.281,3427.6,3427.5,0.07229528]
[1719781043332,2.447,3427.5,3426.8,0.55]
[1719781043479,2.447,3427.5,3426.9,0.45954345]
[1719781043685,2.447,3427.5,3427.0,0.55]
[1719781052381,2.3372,3428.4,3427.3,0.834]
[1719781052609,2.3372,3428.3,3427.3,0.834]
[1719781053499,2.3372,3428.1,3427.3,0.834]
[1719781053706,2.3372,3428.0,3427.1,0.89235162]
[1719781053904,2.3372,3428.0,3427.2,0.55]
[1719781054096,2.3372,3428.0,3427.3,0.05834805]
[1719781056746,3.1712,3428.0,3427.4,0.07016718]